fUSD/lending_fUSD_20250514
["ID","MTS","AMOUNT","RATE_DAILY","PERIOD"]
[361002682,1747194632079,-150.0,0.0001095,2]
[361002683,1747194632088,-8702.80479929,0.00010951,2]
[361002684,1747194632158,-494.7767235,0.00010951,2]
[361002687,1747194632195,-397.03738259,9.968e-05,2]
[361002688,1747194632205,-16172.09220421,0.00010951,2]
[361002690,1747194632214,-668.65185757,0.00010951,2]
[361002692,1747194632224,-287.61899177,0.00010951,2]
[361002694,1747194632234,-152.51427846,0.00010951,2]
[361002696,1747194632243,-151.0,0.00010951,2]
[361002698,1747194632253,-400.0,0.00010958,2]
[361002699,1747194632264,-455.16126561,0.00010958,2]
[361002700,1747194632273,-400.0,0.00010958,2]
[361002701,1747194632282,-355.87572447,0.00010958,2]
[361002702,1747194632292,-429.12,0.00010958,2]
[361002704,1747194632301,-400.0,0.00010958,2]
[361002706,1747194632310,-400.0,0.00010958,2]
[361002708,1747194632320,-889.4,0.00010958,2]
[361002710,1747194632329,-400.0,0.00010958,2]
[361002712,1747194632338,-501.98493693,0.00010958,2]
[361002714,1747194632347,-414.55,0.00010958,2]
[361002716,1747194632357,-400.0,0.00010958,2]
[361002718,1747194632366,-400.0,0.00010958,2]
[361002719,1747194632375,-400.0,0.00010958,2]
[361002721,1747194632385,-400.0,0.00010958,2]
[361002722,1747194632394,-506.26,0.00010958,2]
[361002723,1747194632403,-425.37,0.00010958,2]
[361002724,1747194632412,-471.99279793,0.00010958,2]
[361002726,1747194632422,-250.60207845,0.00010958,2]
[361002728,1747194632431,-510.29917831,0.00010958,2]
[361002730,1747194632440,-400.0,0.00010958,2]
[361002732,1747194632449,-784.98,0.00010958,2]
[361002734,1747194632458,-400.0,0.00010958,2]
[361002736,1747194632467,-400.0,0.00010958,2]
[361002738,1747194632477,-400.0,0.00010958,2]
[361002739,1747194632486,-400.0,0.00010958,2]
[361002741,1747194632495,-400.0,0.00010958,2]
[361002743,1747194632505,-814.732038,0.00010958,2]
[361002746,1747194632515,-400.0,0.00010958,2]
[361002748,1747194632524,-554.63,0.00010958,2]
[361002749,1747194632533,-400.0,0.00010958,2]
[361002750,1747194632542,-400.0,0.00010958,2]
[361002751,1747194632551,-200.52268217,0.00010958,2]
[361002752,1747194632561,-400.0,0.00010958,2]
[361002753,1747194632570,-400.0,0.00010958,2]
[361002754,1747194632580,-811.9,0.00010958,2]
[361002755,1747194632589,-400.0,0.00010958,2]
[361002756,1747194632599,-217.956101,0.00010958,2]
[361002757,1747194632608,-414.72,0.00010958,2]
[361002758,1747194632617,-400.0,0.00010958,2]
[361002759,1747194632626,-3850.616882,0.00010958,2]
[361002760,1747194632635,-167.385618,0.00010958,2]
[361002761,1747194632644,-400.0,0.00010958,2]
[361002762,1747194632654,-584.55,0.00010958,2]
[361002763,1747194632663,-400.0,0.00010958,2]
[361002764,1747194632673,-400.0,0.00010958,2]
[361002765,1747194632682,-400.0,0.00010958,2]
[361002766,1747194632691,-201.0380428,0.00010958,2]
[361002767,1747194632700,-400.0,0.00010958,2]
[361002768,1747194632710,-400.0,0.00010958,2]
[361002769,1747194632720,-400.0,0.00010958,2]
[361002770,1747194632730,-400.0,0.00010958,2]
[361002771,1747194632740,-400.0,0.00010958,2]
[361002772,1747194632749,-721.7,0.00010958,2]
[361002773,1747194632759,-503.81,0.00010958,2]
[361002774,1747194632769,-506.28418056,0.00010958,2]
[361002775,1747194632779,-400.0,0.00010958,2]
[361002776,1747194632789,-400.0,0.00010958,2]
[361002777,1747194632798,-400.0,0.00010958,2]
[361002778,1747194632808,-321.91585052,0.00010958,2]
[361002779,1747194632818,-400.0,0.00010958,2]
[361002780,1747194632828,-400.0,0.00010958,2]
[361002781,1747194632839,-400.0,0.00010958,2]
[361002782,1747194632850,-400.0,0.00010958,2]
[361002783,1747194632860,-400.0,0.00010958,2]
[361002784,1747194632871,-400.0,0.00010958,2]
[361002785,1747194632880,-511.80883241,0.00010958,2]
[361002786,1747194632889,-657.43,0.00010958,2]
[361002787,1747194632898,-400.0,0.00010958,2]
[361002788,1747194632913,-400.0,0.00010958,2]
[361002789,1747194633093,-400.0,0.00010958,2]
[361002790,1747194633103,-400.0,0.00010958,2]
[361002791,1747194633112,-750.32,0.00010958,2]
[361002792,1747194633122,-442.44,0.00010958,2]
[361002793,1747194633131,-400.0,0.00010958,2]
[361002794,1747194633141,-400.0,0.00010958,2]
[361002795,1747194633150,-400.0,0.00010958,2]
[361002796,1747194633160,-400.0,0.00010958,2]
[361002797,1747194633170,-400.0,0.00010958,2]
[361002798,1747194633180,-939.29,0.00010958,2]
[361002799,1747194633189,-415.99,0.00010958,2]
[361002800,1747194633199,-469.48,0.00010958,2]
[361002801,1747194633209,-400.0,0.00010958,2]
[361002802,1747194633218,-400.0,0.00010958,2]
[361002803,1747194633228,-400.0,0.00010958,2]
[361002804,1747194633237,-400.0,0.00010958,2]
[361002805,1747194633248,-742.28,0.00010958,2]
[361002806,1747194633257,-400.0,0.00010958,2]
[361002807,1747194633267,-400.0,0.00010958,2]
[361002808,1747194633276,-494.90709302,0.00010958,2]
[361002809,1747194633287,-400.0,0.00010958,2]
[361002810,1747194633297,-481.5,0.00010958,2]
[361002811,1747194633307,-152.58594523,0.00010958,2]
[361002812,1747194637769,-247.41405477,0.00010958,2]
[361002813,1747194637779,-154.05321214,0.00010958,2]
[361002814,1747194637824,-245.94678786,0.00010958,2]
[361002815,1747194637833,-400.0,0.00010958,2]
[361002816,1747194637844,-400.0,0.00010958,2]
[361002817,1747194637854,-400.0,0.00010958,2]
[361002818,1747194637863,-400.0,0.00010958,2]
[361002819,1747194637872,-405.02,0.00010958,2]
[361002820,1747194637882,-400.0,0.00010958,2]
[361002821,1747194637891,-416.43,0.00010958,2]
[361002822,1747194637902,-400.0,0.00010958,2]
[361002823,1747194637912,-400.0,0.00010958,2]
[361002824,1747194637922,-400.64,0.00010958,2]
[361002825,1747194637932,-400.0,0.00010958,2]
[361002826,1747194637942,-400.0,0.00010958,2]
[361002827,1747194637953,-760.18,0.00010958,2]
[361002828,1747194637963,-673.33,0.00010958,2]
[361002829,1747194637972,-389.83146823,0.00010958,2]
[361002830,1747194637985,-955.92853177,0.00010958,2]
[361002831,1747194637995,-400.0,0.00010958,2]
[361002832,1747194638005,-400.0,0.00010958,2]
[361002833,1747194638015,-791.92,0.00010958,2]
[361002834,1747194638025,-338.26892907,0.00010958,2]
[361002835,1747194638036,-61.73107093,0.00010958,2]
[361002836,1747194638046,-516.34,0.00010958,2]
[361002837,1747194638058,-400.0,0.00010958,2]
[361002838,1747194638067,-400.0,0.00010958,2]
[361002839,1747194638076,-433.94,0.00010958,2]
[361002841,1747194638085,-400.0,0.00010958,2]
[361002843,1747194638095,-500.0,0.00010958,2]
[361002845,1747194638106,-437.6,0.00010958,2]
[361002847,1747194638115,-400.0,0.00010958,2]
[361002849,1747194638124,-400.0,0.00010958,2]
[361002851,1747194638135,-400.0,0.00010958,2]
[361002852,1747194638144,-400.0,0.00010958,2]
[361002853,1747194638153,-400.0,0.00010958,2]
[361002854,1747194638163,-400.76658799,0.00010958,2]
[361002855,1747194638173,-400.0,0.00010958,2]
[361002856,1747194638182,-746.23,0.00010958,2]
[361002857,1747194638192,-1514.84,0.00010958,2]
[361002858,1747194638201,-1189.68,0.00010958,2]
[361002859,1747194638211,-400.0,0.00010958,2]
[361002860,1747194638220,-400.0,0.00010958,2]
[361002861,1747194638229,-371.34492182,0.00010958,2]
[361002862,1747194638238,-400.0,0.00010958,2]
[361002863,1747194638248,-400.0,0.00010958,2]
[361002864,1747194638257,-400.0,0.00010958,2]
[361002865,1747194638269,-400.0,0.00010958,2]
[361002866,1747194638278,-400.0,0.00010958,2]
[361002867,1747194638287,-734.21,0.00010958,2]
[361002868,1747194638297,-400.0,0.00010958,2]
[361002869,1747194638306,-400.0,0.00010958,2]
[361002870,1747194638316,-400.0,0.00010958,2]
[361002871,1747194638325,-501.28566907,0.00010958,2]
[361002873,1747194638335,-952.58,0.00010958,2]
[361002875,1747194638344,-400.73842227,0.00010958,2]
[361002877,1747194638354,-400.0,0.00010958,2]
[361002879,1747194638363,-1226.96,0.00010958,2]
[361002881,1747194638372,-400.0,0.00010958,2]
[361002883,1747194638381,-400.0,0.00010958,2]
[361002885,1747194638390,-985.75,0.00010958,2]
[361002886,1747194638400,-633.81,0.00010958,2]
[361002888,1747194638409,-422.72,0.00010958,2]
[361002890,1747194638418,-400.0,0.00010958,2]
[361002891,1747194638428,-400.0,0.00010958,2]
[361002893,1747194638438,-400.0,0.00010958,2]
[361002895,1747194638447,-400.0,0.00010958,2]
[361002897,1747194638457,-460.41,0.00010958,2]
[361002899,1747194638466,-400.38482612,0.00010958,2]
[361002901,1747194638475,-400.0,0.00010958,2]
[361002902,1747194638484,-687.99,0.00010958,2]
[361002904,1747194638494,-400.85692991,0.00010958,2]
[361002906,1747194638503,-400.0,0.00010958,2]
[361002908,1747194638513,-400.0,0.00010958,2]
[361002910,1747194638522,-400.0,0.00010958,2]
[361002912,1747194638531,-400.0,0.00010958,2]
[361002914,1747194638541,-275.43044641,0.00010958,2]
[361002915,1747194638551,-400.0,0.00010958,2]
[361002916,1747194638560,-400.56037462,0.00010958,2]
[361002917,1747194638571,-358.0,0.00010958,2]
[361002918,1747194638580,-400.0,0.00010958,2]
[361002919,1747194638590,-968.18,0.00010958,2]
[361002920,1747194638600,-400.46633827,0.00010958,2]
[361002921,1747194638610,-462.9,0.00010958,2]
[361002922,1747194638620,-400.0,0.00010958,2]
[361002923,1747194638630,-400.0,0.00010958,2]
[361002924,1747194638639,-400.0,0.00010958,2]
[361002925,1747194638648,-400.0,0.00010958,2]
[361002926,1747194638658,-986.56,0.00010958,2]
[361002927,1747194638668,-400.0,0.00010958,2]
[361002929,1747194638679,-400.42114789,0.00010958,2]
[361002931,1747194638688,-1313.37,0.00010958,2]
[361002933,1747194638697,-400.80052871,0.00010958,2]
[361002934,1747194638707,-400.0,0.00010958,2]
[361002936,1747194638716,-648.15,0.00010958,2]
[361002938,1747194638725,-400.0,0.00010958,2]
[361002940,1747194638734,-590.51,0.00010958,2]
[361002942,1747194638743,-400.0,0.00010958,2]
[361002944,1747194638752,-400.0,0.00010958,2]
[361002946,1747194638761,-400.0,0.00010958,2]
[361002948,1747194638771,-400.0,0.00010958,2]
[361002950,1747194638780,-400.0,0.00010958,2]
[361002952,1747194638790,-402.74125812,0.00010958,2]
[361002954,1747194638799,-908.04,0.00010958,2]
[361002956,1747194638808,-400.0,0.00010958,2]
[361002958,1747194638819,-400.0,0.00010958,2]
[361002960,1747194638828,-400.0,0.00010958,2]
[361002962,1747194638838,-400.0,0.00010958,2]
[361002964,1747194638847,-1050.8,0.00010958,2]
[361002966,1747194638856,-400.0,0.00010958,2]
[361002968,1747194638865,-400.0,0.00010958,2]
[361002970,1747194638875,-400.38688917,0.00010958,2]
[361002972,1747194638884,-754.33,0.00010958,2]
[361002974,1747194638894,-766.58,0.00010958,2]
[361002976,1747194638904,-400.0,0.00010958,2]
[361002977,1747194638915,-400.0,0.00010958,2]
[361002979,1747194638924,-400.0,0.00010958,2]
[361002981,1747194638934,-400.0,0.00010958,2]
[361002983,1747194638944,-400.0,0.00010958,2]
[361002985,1747194638953,-400.0,0.00010958,2]
[361002987,1747194638962,-778.11,0.00010958,2]
[361002989,1747194638972,-400.0,0.00010958,2]
[361002991,1747194638981,-400.0,0.00010958,2]
[361002992,1747194638991,-400.0,0.00010958,2]
[361002993,1747194639000,-874.77,0.00010958,2]
[361002994,1747194639011,-1099.16,0.00010958,2]
[361002995,1747194639020,-400.0,0.00010958,2]
[361002996,1747194639030,-859.91,0.00010958,2]
[361002997,1747194639041,-400.0,0.00010958,2]
[361002998,1747194639052,-1607.65,0.00010958,2]
[361002999,1747194639066,-400.0,0.00010958,2]
[361003000,1747194639074,-751.93,0.00010958,2]
[361003001,1747194639084,-1191.46,0.00010958,2]
[361003002,1747194639093,-400.0,0.00010958,2]
[361003003,1747194639104,-400.0,0.00010958,2]
[361003004,1747194639113,-634.74,0.00010958,2]
[361003005,1747194639124,-400.0,0.00010958,2]
[361003006,1747194639135,-486.18,0.00010958,2]
[361003007,1747194639146,-1047.14,0.00010958,2]
[361003008,1747194639156,-400.0,0.00010958,2]
[361003009,1747194639166,-704.1,0.00010958,2]
[361003010,1747194639175,-400.0,0.00010958,2]
[361003011,1747194639185,-400.0,0.00010958,2]
[361003012,1747194639194,-400.0,0.00010958,2]
[361003013,1747194639203,-400.0,0.00010958,2]
[361003014,1747194639214,-624.14,0.00010958,2]
[361003015,1747194639223,-400.0,0.00010958,2]
[361003016,1747194639232,-565.89,0.00010958,2]
[361003017,1747194639242,-400.0,0.00010958,2]
[361003018,1747194639251,-400.0,0.00010958,2]
[361003019,1747194639261,-400.0,0.00010958,2]
[361003020,1747194639271,-400.0,0.00010958,2]
[361003021,1747194639280,-478.21,0.00010958,2]
[361003022,1747194639289,-546.67,0.00010958,2]
[361003023,1747194639299,-529.3,0.00010958,2]
[361003024,1747194639308,-890.9,0.00010958,2]
[361003025,1747194639318,-400.0,0.00010958,2]
[361003026,1747194639327,-1299.2,0.00010958,2]
[361003027,1747194639336,-400.0,0.00010958,2]
[361003028,1747194639346,-792.83,0.00010958,2]
[361003029,1747194639355,-400.0,0.00010958,2]
[361003030,1747194639364,-400.0,0.00010958,2]
[361003031,1747194639374,-413.02,0.00010958,2]
[361003032,1747194639384,-400.0,0.00010958,2]
[361003033,1747194639394,-400.0,0.00010958,2]
[361003034,1747194639404,-463.25,0.00010958,2]
[361003035,1747194639413,-400.0,0.00010958,2]
[361003036,1747194639424,-1303.82,0.00010958,2]
[361003037,1747194639435,-1276.62,0.00010958,2]
[361003038,1747194639444,-400.0,0.00010958,2]
[361003039,1747194639453,-400.0,0.00010958,2]
[361003040,1747194639462,-400.0,0.00010958,2]
[361003041,1747194639471,-740.68,0.00010958,2]
[361003042,1747194639481,-946.62,0.00010958,2]
[361003043,1747194639493,-3014.94,0.00010958,2]
[361003044,1747194639503,-586.42,0.00010958,2]
[361003045,1747194639513,-502.33,0.00010958,2]
[361003046,1747194639522,-400.0,0.00010958,2]
[361003047,1747194639532,-400.0,0.00010958,2]
[361003048,1747194639543,-938.39,0.00010958,2]
[361003049,1747194639552,-400.0,0.00010958,2]
[361003050,1747194639562,-1288.36,0.00010958,2]
[361003051,1747194639573,-400.0,0.00010958,2]
[361003052,1747194639583,-400.0,0.00010958,2]
[361003053,1747194639593,-1451.17,0.00010958,2]
[361003054,1747194639602,-269.68814981,0.00010958,2]
[361003055,1747194639612,-400.0,0.00010958,2]
[361003056,1747194639623,-1193.74,0.00010958,2]
[361003057,1747194639634,-400.0,0.00010958,2]
[361003058,1747194639645,-407.35158944,0.00010958,2]
[361003059,1747194639654,-1572.6,0.00010958,2]
[361003060,1747194639663,-400.0,0.00010958,2]
[361003061,1747194639674,-557.73,0.00010958,2]
[361003065,1747194639834,-400.0,0.00010958,2]
[361003066,1747194639844,-1218.48,0.00010958,2]
[361003067,1747194639854,-342.99412529,0.00010958,2]
[361003068,1747194639863,-400.0,0.00010958,2]
[361003069,1747194639874,-1185.0,0.00010958,2]
[361003070,1747194639883,-1185.0,0.00010958,2]
[361003071,1747194639893,-400.0,0.00010958,2]
[361003072,1747194639902,-1185.0,0.00010958,2]
[361003073,1747194639910,-867.93,0.00010958,2]
[361003074,1747194639919,-400.0,0.00010958,2]
[361003075,1747194639928,-404.11511962,0.00010958,2]
[361003076,1747194639936,-1653.16,0.00010958,2]
[361003077,1747194639944,-480.8056815,0.00010958,2]
[361003078,1747194639952,-2759.65,0.00010958,2]
[361003079,1747194639960,-400.0,0.00010958,2]
[361003080,1747194639968,-860.08,0.00010958,2]
[361003081,1747194639976,-400.0,0.00010958,2]
[361003082,1747194639984,-418.32,0.00010958,2]
[361003083,1747194639992,-400.0,0.00010958,2]
[361003084,1747194640000,-400.0,0.00010958,2]
[361003085,1747194640009,-541.31,0.00010958,2]
[361003086,1747194640018,-471.48439025,0.00010958,2]
[361003087,1747194640026,-400.0,0.00010958,2]
[361003088,1747194640035,-377.55363618,0.00010958,2]
[361003089,1747194640043,-400.0,0.00010958,2]
[361003090,1747194640053,-231.20857429,0.00010958,2]
[361003091,1747194640063,-403.13310518,0.00010958,2]
[361003092,1747194640071,-400.0,0.00010958,2]
[361003093,1747194640079,-1002.44,0.00010958,2]
[361003094,1747194640088,-400.0,0.00010958,2]
[361003095,1747194640097,-269.69250276,0.00010958,2]
[361003096,1747194641377,-130.30749724,0.00010958,2]
[361003097,1747194641387,-400.0,0.00010958,2]
[361003098,1747194641398,-328.89291259,0.00010958,2]
[361003099,1747194641426,-182.27708741,0.00010958,2]
[361003100,1747194641436,-520.19,0.00010958,2]
[361003101,1747194641445,-264.60450665,0.00010958,2]
[361003102,1747194641463,-135.39549335,0.00010958,2]
[361003103,1747194641474,-400.0,0.00010958,2]
[361003104,1747194641483,-400.0,0.00010958,2]
[361003105,1747194641493,-964.68,0.00010958,2]
[361003106,1747194641503,-521.0745143,0.00010958,2]
[361003107,1747194641518,-167.0954857,0.00010958,2]
[361003108,1747194641527,-468.56,0.00010958,2]
[361003109,1747194641537,-417.80851711,0.00010958,2]
[361003110,1747194641548,-1772.94,0.00010958,2]
[361003111,1747194641558,-735.07,0.00010958,2]
[361003112,1747194641568,-400.0,0.00010958,2]
[361003113,1747194641579,-604.74,0.00010958,2]
[361003114,1747194641588,-400.0,0.00010958,2]
[361003115,1747194641597,-299.86539993,0.00010958,2]
[361003116,1747194641612,-100.13460007,0.00010958,2]
[361003117,1747194641623,-525.21,0.00010958,2]
[361003118,1747194641633,-361.11410243,0.00010958,2]
[361003119,1747194641669,-134.88132313,0.00010958,2]
[361003120,1747194641679,-400.0,0.00010958,2]
[361003121,1747194641689,-230.06567687,0.00010958,2]
[361003122,1747194641700,-169.93432313,0.00010958,2]
[361003123,1747194641709,-400.0,0.00010958,2]
[361003124,1747194641718,-400.0,0.00010958,2]
[361003125,1747194641727,-30.19987074,0.00010958,2]
[361003126,1747194641747,-369.80012926,0.00010958,2]
[361003127,1747194641756,-400.0,0.00010958,2]
[361003128,1747194641765,-45.63987076,0.00010958,2]
[361003130,1747194642848,-1066.87012924,0.00010958,2]
[361003131,1747194642858,-356.8527809,0.00010958,2]
[361003133,1747194642868,-400.0,0.00010958,2]
[361003134,1747194642878,-400.0,0.00010958,2]
[361003135,1747194642889,-359.5112408,0.00010958,2]
[361003136,1747194642899,-412.06,0.00010958,2]
[361003137,1747194642908,-400.0,0.00010958,2]
[361003138,1747194642918,-614.85,0.00010958,2]
[361003139,1747194642928,-858.35,0.00010958,2]
[361003140,1747194642938,-507.95170506,0.00010958,2]
[361003141,1747194642950,-556.3898016,0.00010958,2]
[361003142,1747194642969,-476.41486794,0.00010958,2]
[361003143,1747194642981,-289.1936254,0.00010958,2]
[361003144,1747194642990,-400.0,0.00010958,2]
[361003145,1747194643000,-400.0,0.00010958,2]
[361003146,1747194643010,-76.11041842,0.00010958,2]
[361003147,1747194643022,-1575.05958158,0.00010958,2]
[361003148,1747194643031,-400.0,0.00010958,2]
[361003149,1747194643041,-481.87,0.00010958,2]
[361003150,1747194643050,-398.10425346,0.00010958,2]
[361003151,1747194643063,-819.16,0.00010958,2]
[361003152,1747194643072,-400.0,0.00010958,2]
[361003153,1747194643082,-1195.45,0.00010958,2]
[361003154,1747194643092,-1052.49257819,0.00010958,2]
[361003155,1747194643104,-267.32742181,0.00010958,2]
[361003156,1747194643115,-400.0,0.00010958,2]
[361003157,1747194643124,-1054.86,0.00010958,2]
[361003158,1747194643136,-400.0,0.00010958,2]
[361003159,1747194643146,-1652.95,0.00010958,2]
[361003160,1747194643156,-400.0,0.00010958,2]
[361003161,1747194643165,-738.66,0.00010958,2]
[361003162,1747194643175,-400.0,0.00010958,2]
[361003163,1747194643185,-531.44,0.00010958,2]
[361003164,1747194643195,-250.0,0.00010958,2]
[361003165,1747194643205,-400.0,0.00010958,2]
[361003166,1747194643215,-1124.51,0.00010958,2]
[361003167,1747194643225,-442.27,0.00010958,2]
[361003168,1747194643235,-652.82,0.00010958,2]
[361003169,1747194643244,-639.12,0.00010958,2]
[361003170,1747194643254,-400.0,0.00010958,2]
[361003171,1747194643264,-731.78,0.00010958,2]
[361003172,1747194643276,-400.0,0.00010958,2]
[361003173,1747194643286,-1024.4,0.00010958,2]
[361003174,1747194643295,-424.76,0.00010958,2]
[361003175,1747194643305,-400.0,0.00010958,2]
[361003176,1747194643314,-82.74941929,0.00010958,2]
[361003177,1747194643326,-300.42878841,0.00010958,2]
[361003178,1747194643338,-1039.9117923,0.00010958,2]
[361003179,1747194643348,-81.2332077,0.00010958,2]
[361003180,1747194643379,-318.7667923,0.00010958,2]
[361003181,1747194643389,-535.24945709,0.00010958,2]
[361003182,1747194643401,-907.23054291,0.00010958,2]
[361003183,1747194643410,-400.0,0.00010958,2]
[361003184,1747194643420,-400.31541228,0.00010958,2]
[361003185,1747194643431,-1.70458772,0.00010958,2]
[361003186,1747194643440,-400.0,0.00010958,2]
[361003187,1747194643450,-439.38620041,0.00010958,2]
[361003188,1747194643466,-735.915,0.00010958,2]
[361003189,1747194643478,-219.41879959,0.00010958,2]
[361003190,1747194643488,-400.0,0.00010958,2]
[361003191,1747194643497,-164.15189399,0.00010958,2]
[361003192,1747194643509,-235.84810601,0.00010958,2]
[361003193,1747194643520,-296.31713961,0.00010958,2]
[361003194,1747194643530,-400.0,0.00010958,2]
[361003196,1747194643539,-400.0,0.00010958,2]
[361003198,1747194643549,-638.19,0.00010958,2]
[361003200,1747194643560,-400.0,0.00010958,2]
[361003202,1747194643748,-400.0,0.00010958,2]
[361003203,1747194643758,-400.0,0.00010958,2]
[361003204,1747194643767,-1498.07,0.00010958,2]
[361003205,1747194643776,-2510.32251686,0.00010958,2]
[361003206,1747194643787,-1015.14282811,0.00010958,2]
[361003207,1747194643798,-210.61465503,0.00010958,2]
[361003208,1747194643807,-400.0,0.00010958,2]
[361003209,1747194643816,-400.0,0.00010958,2]
[361003210,1747194643824,-400.0,0.00010958,2]
[361003211,1747194643834,-698.45,0.00010958,2]
[361003212,1747194643843,-465.16,0.00010958,2]
[361003213,1747194643852,-400.0,0.00010958,2]
[361003214,1747194643860,-400.0,0.00010958,2]
[361003215,1747194643869,-322.62182097,0.00010958,2]
[361003216,1747194643879,-400.0,0.00010958,2]
[361003217,1747194643891,-400.0,0.00010958,2]
[361003218,1747194643901,-400.0,0.00010958,2]
[361003219,1747194643910,-528.85,0.00010958,2]
[361003220,1747194643919,-1914.76,0.00010958,2]
[361003221,1747194643928,-5471.97,0.00010958,2]
[361003222,1747194643937,-400.0,0.00010958,2]
[361003223,1747194643946,-400.0,0.00010958,2]
[361003224,1747194643955,-400.0,0.00010958,2]
[361003225,1747194643964,-400.0,0.00010958,2]
[361003226,1747194643973,-739.43,0.00010958,2]
[361003227,1747194643982,-400.0,0.00010958,2]
[361003228,1747194643991,-400.0,0.00010958,2]
[361003229,1747194643999,-199.62710257,0.00010958,2]
[361003230,1747194644009,-400.0,0.00010958,2]
[361003231,1747194644020,-400.0,0.00010958,2]
[361003232,1747194644030,-1465.12,0.00010958,2]
[361003233,1747194644040,-400.0,0.00010958,2]
[361003234,1747194644051,-400.0,0.00010958,2]
[361003235,1747194644065,-1584.01,0.00010958,2]
[361003236,1747194644076,-474.4,0.00010958,2]
[361003237,1747194644085,-400.0,0.00010958,2]
[361003238,1747194644094,-1254.3,0.00010958,2]
[361003239,1747194644105,-980.34,0.00010958,2]
[361003240,1747194644115,-400.0,0.00010958,2]
[361003241,1747194644126,-636.83,0.00010958,2]
[361003242,1747194644137,-400.0,0.00010958,2]
[361003243,1747194644148,-400.0,0.00010958,2]
[361003244,1747194644157,-400.0,0.00010958,2]
[361003245,1747194644167,-157.24574073,0.00010958,2]
[361003246,1747194644177,-922.73,0.00010958,2]
[361003247,1747194644186,-400.0,0.00010958,2]
[361003248,1747194644196,-1056.66,0.00010958,2]
[361003249,1747194644206,-510.36181898,0.00010958,2]
[361003250,1747194644215,-822.03,0.00010958,2]
[361003251,1747194644224,-1217.89,0.00010958,2]
[361003252,1747194644234,-400.0,0.00010958,2]
[361003253,1747194644242,-400.0,0.00010958,2]
[361003254,1747194644253,-400.0,0.00010958,2]
[361003255,1747194644262,-476.83,0.00010958,2]
[361003256,1747194644274,-400.0,0.00010958,2]
[361003257,1747194644285,-400.0,0.00010958,2]
[361003258,1747194644297,-400.0,0.00010958,2]
[361003259,1747194644308,-2020.9,0.00010958,2]
[361003260,1747194644318,-400.0,0.00010958,2]
[361003261,1747194644328,-576.86,0.00010958,2]
[361003262,1747194644338,-560.33,0.00010958,2]
[361003263,1747194644347,-345.82895278,0.00010958,2]
[361003264,1747194644356,-627.84,0.00010958,2]
[361003265,1747194644367,-643.03,0.00010958,2]
[361003266,1747194644376,-400.0,0.00010958,2]
[361003267,1747194644386,-518.96,0.00010958,2]
[361003268,1747194644395,-400.0,0.00010958,2]
[361003269,1747194644407,-400.0,0.00010958,2]
[361003270,1747194644417,-400.0,0.00010958,2]
[361003271,1747194644429,-604.84,0.00010958,2]
[361003272,1747194644438,-400.0,0.00010958,2]
[361003273,1747194644448,-400.0,0.00010958,2]
[361003274,1747194644458,-1227.41,0.00010958,2]
[361003275,1747194644467,-3232.54,0.00010958,2]